bitfinex-derivatives/quotes_ETHF0:USTF0_20250626
["timestamp","ask_amount","ask_price","bid_price","bid_amount"]
[1750944751804,0.81892,2441.5,2441.3,0.81895]
[1750944752005,0.81892,2441.5,2441.3,0.81897]
[1750944752201,0.81894,2441.4,2441.2,10.87478]
[1750944752406,1.4243,2441.8,2441.2,10.0558]
[1750944752608,3.8787,2441.9,2441.2,10.0558]
[1750944752808,3.2078,2441.9,2441.3,1.3461]
[1750944752999,0.81887,2441.6,2441.4,0.8189]
[1750944753200,0.81887,2441.6,2441.5,0.8189]
[1750944753408,0.81887,2441.6,2441.4,0.81892]
[1750944753409,0.81889,2441.6,2441.4,0.81892]
[1750944753898,0.81886,2441.7,2441.5,0.8189]
[1750944754213,3.2078,2441.9,2441.8,0.8188]
[1750944754505,0.81881,2441.8,2441.6,12.26395]
[1750944754708,0.81883,2441.7,2441.6,0.7234]
[1750944754903,1.3565,2441.7,2441.3,3.2078]
[1750944755212,3.2078,2441.6,2441.2,6.848]
[1750944755408,0.81904,2441.1,2441.0,3.9312]
[1750944755604,0.81907,2441.0,2440.9,6.848]
[1750944755801,5.25536,2441.2,2440.6,54.014]
[1750944756008,0.81917,2440.7,2440.6,6.849]
[1750944756313,1.3637,2440.9,2440.6,6.849]
[1750944756314,0.81916,2440.8,2440.6,6.849]
[1750944756502,0.81917,2440.7,2440.6,6.849]
[1750944756905,4.5715,2440.9,2440.2,1.54572]
[1750944757113,0.81924,2440.5,2440.3,0.8193]
[1750944757411,0.8193,2440.4,2440.1,4.02716]
[1750944757718,1.3637,2440.6,2440.1,4.02716]
[1750944757719,0.81925,2440.5,2440.2,0.81933]
[1750944758103,0.81931,2440.3,2440.1,3.2078]
[1750944758300,0.81929,2440.4,2440.1,3.2078]
[1750944758507,0.81925,2440.5,2440.2,0.81932]
[1750944758915,2.18292,2440.6,2440.3,0.81929]
[1750944759104,3.2078,2440.9,2440.1,12.0470273]
[1750944759307,2.25175,2440.8,2440.5,0.81921]
[1750944759506,1.4326,2440.8,2440.4,3.2078]
[1750944759805,0.81919,2440.7,2440.4,4.02705]
[1750944760011,0.81919,2440.7,2440.5,0.81924]
[1750944760213,1.4326,2440.8,2440.6,0.8192]
[1750944760412,2.25175,2440.8,2440.5,0.81922]
[1750944760613,1.4326,2440.8,2440.7,0.81917]
[1750944760912,0.81919,2440.7,2440.5,0.6674]
[1750944761115,0.81919,2440.7,2440.5,1.48664]
[1750944761711,1.4326,2440.9,2440.5,0.6674]
[1750944761915,0.81919,2440.7,2440.5,1.48663]
[1750944762104,1.4326,2440.9,2440.5,1.48663]
[1750944762306,0.81916,2440.8,2440.5,0.6674]
[1750944762504,0.8192,2440.7,2440.5,0.6674]
[1750944762705,0.8192,2440.6,2440.5,0.6674]
[1750944762917,3.2078,2440.7,2439.6,3.26873706]
[1750944763209,13.9432273,2440.9,2437.9,3.8912]
[1750944763210,4.09806,2439.4,2437.9,3.8912]
[1750944763416,3.2078,2438.5,2437.9,3.8912]
[1750944763608,0.81997,2438.4,2438.0,1.3513]
[1750944763804,0.81996,2438.4,2438.1,0.82003]
[1750944764004,0.81994,2438.4,2438.0,2.17136]
[1750944764204,3.2078,2438.5,2438.0,1.3513]
[1750944764608,0.82,2438.3,2438.2,0.02669095]
[1750944765014,3.2078,2438.8,2438.3,0.81998]
[1750944765203,0.81991,2438.5,2438.4,1.427]
[1750944765404,3.2078,2438.8,2438.4,0.0533819]
[1750944765718,0.81991,2438.5,2438.4,0.0533819]
[1750944766014,4.02771,2438.5,2438.4,0.0533819]
[1750944766208,2.04995,2438.3,2437.5,1.427]
[1750944766513,0.82019,2437.7,2437.5,1.427]
[1750944766715,3.2078,2438.6,2437.6,10.7184273]
[1750944766917,3.9179,2439.2,2438.5,3.2078]
[1750944767114,4.5986,2439.2,2438.5,3.2078]
[1750944767414,0.81973,2439.1,2438.6,1.427]
[1750944767710,4.5986,2439.2,2438.5,3.2078]
[1750944767912,0.81977,2439.0,2438.6,0.81986]
[1750944768105,0.81979,2438.9,2438.5,4.02768]
[1750944768310,2.27413,2439.1,2438.7,0.81982]
[1750944768509,1.4544,2439.1,2438.6,0.81985]
[1750944768904,0.81978,2438.9,2438.6,0.81985]
[1750944769104,0.81975,2439.0,2438.7,0.81984]
[1750944769918,0.81979,2438.9,2438.6,0.81987]
[1750944770414,0.81972,2439.1,2438.5,3.2078]
[1750944770712,0.81965,2439.3,2439.0,0.81972]
[1750944770907,3.2078,2439.5,2438.6,1.434]
[1750944770908,3.2078,2439.5,2438.8,3.2078]
[1750944771104,3.2078,2439.5,2438.9,1.3578]
[1750944771314,4.5981,2439.5,2438.9,1.3578]
[1750944771816,0.81964,2439.3,2439.2,0.01570168]
[1750944772416,7.67464,2439.3,2439.2,0.01570168]
[1750944772617,0.81991,2438.5,2438.4,0.729]
[1750944773008,3.2078,2438.8,2438.0,11.4206]
[1750944773009,0.82004,2438.2,2438.0,10.0628]
[1750944773212,1.3903,2438.4,2437.7,2.0529]
[1750944773513,0.82008,2438.1,2437.9,0.8201]
[1750944773721,1.3903,2438.4,2437.8,0.82013]
[1750944773722,0.8201,2438.0,2437.8,0.82013]
[1750944774017,1.3903,2438.4,2437.9,0.82011]
[1750944774314,1.3903,2438.4,2437.7,2.0529]
[1750944774522,1.3903,2438.4,2438.1,0.82002]
[1750944774816,1.3903,2438.4,2437.7,2.0529]
[1750944774817,0.82002,2438.2,2438.0,0.82006]
[1750944775015,0.82,2438.3,2438.1,0.82004]
[1750944775221,0.82003,2438.2,2437.9,0.82008]
[1750944775520,0.82003,2438.2,2437.7,0.6951]
[1750944775521,0.82014,2437.8,2437.7,0.6951]
[1750944775709,0.82013,2437.9,2437.7,0.82017]
[1750944776117,0.82014,2437.8,2437.6,4.028]
[1750944776317,3.2078,2437.9,2437.3,4.5559]
[1750944776618,1.3227,2437.8,2437.3,4.02811]
[1750944776914,0.82019,2437.7,2437.4,0.82025]
[1750944777214,2.14286,2437.8,2437.5,0.82024]
[1750944777418,0.8202,2437.7,2437.4,0.82026]
[1750944777630,0.82022,2437.6,2437.3,4.0281]
[1750944777917,0.82023,2437.6,2437.3,4.0281]
[1750944778220,1.3227,2437.8,2437.3,3.2078]
[1750944778419,0.82024,2437.6,2437.3,4.0281]
[1750944778623,0.82026,2437.5,2437.3,4.0281]
[1750944778821,0.8202,2437.7,2437.4,0.82028]
[1750944779021,0.82023,2437.6,2437.4,0.82028]
[1750944779210,0.82023,2437.6,2437.3,4.02809]
[1750944779415,0.82025,2437.5,2437.3,4.02809]
[1750944779611,1.3227,2437.8,2437.3,4.02809]
[1750944779612,0.82018,2437.7,2437.5,0.82024]
[1750944779914,3.2078,2438.3,2438.2,0.82001]
[1750944780118,3.2078,2438.3,2437.7,2.05038]
[1750944780416,6.858,2438.5,2437.9,5.25804]
[1750944780721,7.6779,2438.6,2438.3,0.81995]
[1750944780916,0.81992,2438.5,2438.2,0.81998]
[1750944781115,0.81992,2438.5,2438.0,1.4287]
[1750944781116,3.2078,2438.7,2438.0,1.4287]
[1750944781715,3.2078,2438.7,2438.6,0.81988]
[1750944781920,3.2078,2439.1,2439.0,0.81974]
[1750944782116,2.04911,2439.3,2438.7,6.952]
[1750944782318,0.81988,2438.6,2438.5,1.3493]
[1750944782525,0.81987,2438.7,2438.5,2.16921]
[1750944782824,0.81988,2438.6,2438.5,1.3493]
[1750944783024,0.81986,2438.7,2438.5,2.16921]
[1750944783318,3.2078,2438.8,2438.2,3.2078]
[1750944783822,0.81994,2438.5,2438.2,5.3576]
[1750944784025,0.81998,2438.3,2438.2,3.2078]
[1750944784217,0.82004,2438.1,2438.0,6.952]
[1750944784419,5.25765,2438.5,2437.8,0.6851]
[1750944784725,0.82018,2437.7,2437.5,9.10203]
[1750944785024,0.82023,2437.6,2437.4,10.98007]
[1750944785725,0.82021,2437.6,2437.4,10.98007]
[1750944786022,3.2078,2437.5,2437.0,1.3298]
[1750944786216,3.2078,2437.5,2436.8,0.7235]
[1750944786217,0.82036,2437.2,2436.9,0.82043]
[1750944786416,1.3344,2437.4,2436.8,3.00086]
[1750944786613,0.82043,2437.0,2436.8,2.1804]
[1750944786819,1.3344,2437.4,2436.8,2.1804]
[1750944787013,0.82026,2437.5,2437.2,0.82033]
[1750944787213,0.82026,2437.5,2437.0,3.2078]
[1750944787214,0.82005,2438.1,2437.8,0.82012]
[1750944787514,1.09799377,2438.0,2437.6,10.1598]
[1750944787717,2.40886474,2438.3,2438.0,0.82006]
[1750944787928,1.0978377,2438.2,2438.1,0.82004]
[1750944788122,1.09791216,2438.2,2437.9,3.2078]
[1750944788321,2.40886474,2438.3,2438.0,1.4569]
[1750944788622,3.22885474,2438.3,2438.1,0.82003]
[1750944788814,1.09827137,2438.2,2438.1,0.82003]
[1750944789225,0.81992,2438.5,2438.3,0.81998]
[1750944789527,1.91927159,2438.4,2438.2,0.81999]
[1750944789828,1.09930392,2438.3,2438.2,0.82001]
[1750944790818,10.69036474,2438.9,2438.1,3.2078]
[1750944791024,1.10124799,2438.8,2438.4,3.2078]
[1750944791220,0.81989,2438.6,2438.4,4.02773]
[1750944791416,2.43074799,2438.7,2438.4,4.02773]
[1750944791417,1.10124799,2438.5,2438.4,4.02773]
[1750944791618,2.40886474,2438.8,2438.7,0.81984]
[1750944791820,1.10261471,2438.8,2438.4,3.2078]
[1750944792020,1.10261471,2438.7,2438.6,0.81985]
[1750944792617,0.8199,2438.6,2438.4,4.02772]
[1750944792925,1.92254471,2438.5,2438.3,1.50745]
[1750944793133,1.10261471,2438.4,2438.1,3.2078]
[1750944793319,0.8201,2438.0,2437.8,0.82013]
[1750944793520,1.10261471,2437.9,2437.8,0.82014]
[1750944793726,0.81999,2438.3,2438.1,0.82004]
[1750944794021,0.82006,2438.1,2437.8,1.3497]
[1750944794215,1.10493683,2438.2,2437.8,1.3497]
[1750944794216,1.10493683,2438.0,2437.9,0.82009]
[1750944794418,4.5728,2438.4,2437.8,1.3497]
[1750944794623,1.10557751,2438.3,2438.2,0.82001]
[1750944794924,0.82001,2438.2,2438.1,0.82002]
[1750944795127,1.10557751,2438.2,2438.1,0.82004]
[1750944795323,1.92558751,2438.2,2438.1,0.82004]
[1750944795516,1.10557751,2438.2,2438.1,0.82004]
[1750944797218,7.6721,2438.8,2438.1,0.82004]
[1750944797219,2.40886474,2438.8,2438.3,2.04988]
[1750944797523,3.22858474,2439.1,2438.7,10.7184273]
[1750944797718,3.22858474,2439.1,2438.8,9.22851]
[1750944797719,2.40886474,2438.9,2438.8,9.22851]
[1750944798832,2.40886474,2438.9,2438.8,7.77181]
[1750944799033,2.40886474,2438.9,2438.8,9.09741]
[1750944799226,2.40886474,2438.9,2438.5,0.8199]
[1750944799528,5.25742,2438.7,2438.1,6.952]
[1750944799726,0.81995,2438.4,2438.2,0.81998]
[1750944800032,0.81998,2438.3,2438.1,7.77202]
[1750944800224,0.81998,2438.3,2438.2,0.82001]
[1750944800430,0.81996,2438.4,2438.1,6.952]
[1750944800729,0.81998,2438.3,2438.2,0.81999]
[1750944801131,0.82001,2438.2,2438.1,6.952]
[1750944801521,0.82,2438.3,2438.1,6.952]
[1750944801724,0.81996,2438.4,2438.2,0.81998]
[1750944801923,0.81992,2438.5,2438.3,0.81998]
[1750944802133,2.26842,2438.5,2438.3,0.81998]
[1750944802336,2.42917474,2438.6,2438.2,3.2078]
[1750944802534,5.63697474,2438.7,2438.6,0.81988]
[1750944803035,5.63697474,2438.7,2438.5,0.81989]
[1750944803332,6.45683474,2438.7,2438.3,1.4113]
[1750944803635,6.45683474,2438.7,2438.6,0.81988]
[1750944803935,5.63697474,2438.7,2438.6,0.81988]
[1750944804129,2.42917474,2438.7,2438.6,0.81988]
[1750944804428,2.42917474,2439.0,2438.9,0.81977]
[1750944804633,2.42917474,2439.0,2438.9,10.97957]
[1750944804825,2.42917474,2439.3,2439.1,0.81968]
[1750944805026,3.24884474,2439.3,2439.1,0.81968]
[1750944805226,3.24884474,2439.3,2439.2,0.81967]
[1750944805429,2.42917474,2439.3,2439.2,0.81967]
[1750944805632,3.24883474,2439.3,2439.2,0.81967]
[1750944805824,2.42917474,2439.3,2439.2,0.81967]
[1750944806138,3.24876474,2439.5,2439.4,0.81961]
[1750944806426,2.42917474,2439.6,2439.5,0.81957]
[1750944806628,6.36097474,2439.7,2439.5,0.81957]
[1750944806830,7.18049474,2439.7,2439.5,0.81957]
[1750944807032,0.81954,2439.6,2439.5,0.81957]
[1750944807234,6.36097474,2439.7,2439.4,7.77059]
[1750944807434,0.81955,2439.6,2439.4,7.77058]
[1750944807629,7.18049474,2439.7,2439.4,6.951]
[1750944807835,0.81957,2439.5,2439.4,6.951]
[1750944808138,0.81957,2439.5,2438.9,3.2078]
[1750944808139,0.81972,2439.1,2438.9,3.2078]
[1750944808329,0.81972,2439.1,2439.0,6.951]
[1750944808528,0.81969,2439.2,2439.0,6.951]
[1750944808730,0.81969,2439.2,2439.0,7.77072]
[1750944808936,0.81971,2439.1,2439.0,6.951]
[1750944809324,1.10329969,2439.1,2439.0,7.77074]
[1750944810336,0.81954,2439.6,2439.4,0.81958]
[1750944810529,7.18050474,2439.7,2439.5,0.81957]
[1750944810732,2.42917474,2439.8,2439.7,0.81951]
[1750944811038,1.4521,2440.1,2439.5,3.2078]
[1750944811232,0.81946,2439.9,2439.5,3.889]
[1750944811539,1.4521,2440.1,2439.8,0.81947]
[1750944811540,0.81943,2440.0,2439.8,0.81947]
[1750944811744,0.81951,2439.7,2439.6,0.81952]
[1750944811937,0.81951,2439.7,2439.6,7.84052]
[1750944812438,0.81951,2439.7,2439.6,7.021]
[1750944813038,0.81951,2439.7,2439.6,7.84054]
[1750944813534,0.81949,2439.8,2439.6,7.84054]
[1750944813732,0.81949,2439.8,2439.7,0.81951]
[1750944813931,0.81949,2439.8,2439.6,7.84052]
[1750944814141,0.81949,2439.8,2439.7,0.81951]
[1750944814640,0.81951,2439.7,2439.6,7.84052]
[1750944814841,0.8195,2439.8,2439.7,0.81951]
[1750944815041,0.81951,2439.7,2439.6,7.021]
[1750944815232,0.81953,2439.7,2439.5,10.2278]
[1750944815438,0.81953,2439.7,2439.6,0.81954]
[1750944815632,0.81949,2439.8,2439.6,0.81954]
[1750944815833,3.2078,2440.0,2439.7,0.81948]
[1750944815834,1.376,2439.9,2439.7,0.81948]
[1750944816137,0.81947,2439.8,2439.7,0.81948]
[1750944816536,0.81947,2439.8,2439.6,0.81952]
[1750944816738,0.81947,2439.8,2439.7,0.81951]
[1750944816935,1.376,2439.9,2439.8,0.81947]
[1750944817326,0.7296,2440.2,2439.5,12.2767]
[1750944817538,1.54896,2440.2,2440.1,0.81937]
[1750944817932,0.7296,2440.2,2440.0,0.81939]
[1750944818133,0.7296,2440.2,2440.1,0.81937]
[1750944818339,1.54894,2440.2,2440.1,0.81937]
[1750944818934,0.7296,2440.2,2440.1,0.81937]
[1750944819135,2.28049,2440.4,2440.3,0.8193]
[1750944819837,2.42917474,2440.6,2440.1,3.2078]
[1750944820038,0.81924,2440.5,2440.1,3.2078]
[1750944820234,0.6679,2440.7,2440.6,0.8192]
[1750944820542,2.42917474,2440.8,2440.7,0.81917]
[1750944820741,2.42917474,2440.9,2440.8,0.81914]
[1750944821240,2.42917474,2441.0,2440.9,0.8191]
[1750944822535,1.10575118,2441.0,2440.9,0.8191]
[1750944822736,3.24822474,2441.1,2440.9,0.8191]
[1750944822938,1.92485118,2441.0,2440.8,0.81912]
[1750944823144,1.10575118,2440.9,2440.7,10.2268]
[1750944823439,1.92489118,2440.8,2440.7,10.2268]
[1750944823640,1.10575118,2440.8,2440.7,11.04597]
[1750944824945,1.4002,2441.2,2440.7,11.04596]
[1750944825146,0.81914,2440.8,2440.7,11.04596]
[1750944825339,0.81914,2440.8,2440.7,10.2268]
[1750944825539,1.92383168,2440.8,2440.7,10.2268]
[1750944825741,1.10469168,2440.8,2440.7,11.04597]
[1750944825939,1.92383168,2440.8,2440.7,10.2268]
[1750944826244,1.10469168,2440.8,2440.7,12.41207]
[1750944826743,1.92383168,2440.8,2440.7,12.41207]
[1750944827041,0.81914,2440.8,2440.7,11.5909]
[1750944827248,0.81914,2440.8,2440.7,11.04397]
[1750944827546,0.81914,2440.8,2440.7,11.04395]
[1750944827850,0.81914,2440.8,2440.7,10.2248]
[1750944828145,0.81912,2440.9,2440.7,11.04397]
[1750944828335,0.81909,2441.0,2440.8,0.81914]
[1750944828536,3.15907474,2441.5,2440.7,10.2248]
[1750944828737,3.2078,2441.6,2441.3,0.81897]
[1750944828738,1.92357729,2441.4,2441.3,0.81897]
[1750944829040,0.81892,2441.5,2441.3,0.81897]
[1750944829234,2.1041,2441.6,2441.3,0.81897]
[1750944829235,1.10468094,2441.4,2441.3,0.81897]
[1750944829639,1.10468094,2441.4,2441.3,4.02677]
[1750944830237,1.10468094,2441.4,2441.0,4.02685]
[1750944830452,0.81903,2441.2,2441.1,7.016]
[1750944830643,0.81895,2441.4,2441.1,7.016]
[1750944830843,1.92301485,2441.3,2441.2,0.81899]
[1750944831147,1.9230753,2441.3,2441.2,0.819]
[1750944831352,3.2078,2441.6,2441.2,0.819]
[1750944831545,1.10431396,2441.5,2441.2,0.81899]
[1750944831746,3.2078,2441.6,2441.2,0.81899]
[1750944831948,0.81897,2441.3,2441.2,0.81899]
[1750944832145,3.2078,2441.6,2441.1,9.19062]
[1750944832347,0.819,2441.2,2441.1,8.3716]
[1750944832546,0.819,2441.2,2441.1,7.016]
[1750944832842,0.81904,2441.1,2441.0,3.2078]
[1750944833146,0.81907,2441.0,2440.9,0.8191]
[1750944833335,0.81905,2441.1,2441.0,0.81906]
[1750944833539,0.7301,2441.4,2440.9,7.015]
[1750944833740,2.04708,2441.8,2441.0,4.627]
[1750944833936,3.2078,2441.5,2441.0,4.627]
[1750944834141,0.81901,2441.2,2441.1,0.81902]
[1750944834341,1.4564,2441.7,2441.0,4.627]
[1750944834550,1.92329424,2441.6,2441.4,0.81891]
[1750944834753,1.10441424,2441.5,2441.4,7.83394]
[1750944835448,1.10441424,2441.5,2441.4,9.28654]
[1750944835945,4.02662,2441.8,2441.7,0.81883]
[1750944836150,0.81883,2441.7,2441.6,0.81885]
[1750944836354,0.81889,2441.6,2441.5,0.8189]
[1750944836539,1.10442228,2441.6,2441.5,0.8189]
[1750944836953,0.81894,2441.4,2441.3,3.2078]
[1750944837243,3.2078,2441.8,2441.3,10.2218]
[1750944837443,1.10344907,2441.7,2441.6,0.81887]
[1750944837644,1.10344907,2441.7,2441.6,4.02667]
[1750944838044,1.10344907,2441.7,2441.3,11.6744]
[1750944838240,1.10344907,2441.6,2441.5,0.8189]
[1750944839345,3.78427474,2442.1,2441.7,0.8188]
[1750944839545,0.81883,2441.7,2441.6,4.02665]
[1750944839749,0.81887,2441.6,2441.5,0.81887]
[1750944840053,0.81885,2441.7,2441.6,0.81887]
[1750944840351,0.81882,2441.8,2441.7,0.81883]
[1750944840550,1.10389202,2442.0,2441.9,0.81875]
[1750944840753,0.81878,2441.9,2441.8,0.81879]
[1750944841049,0.8188,2441.8,2441.7,7.014]
[1750944841251,1.10388319,2441.8,2441.7,7.83283]
[1750944841546,1.92270319,2441.8,2441.7,7.74683]
[1750944841751,1.10388319,2441.8,2441.7,7.74683]
[1750944842050,1.92268319,2441.8,2441.7,6.928]
[1750944842251,1.92268319,2441.8,2441.7,7.74683]
[1750944842555,1.10388319,2441.8,2441.7,7.74683]
[1750944842744,1.92268319,2441.8,2441.7,6.928]
[1750944843052,0.81892,2441.5,2441.4,0.81893]
[1750944843345,0.7004,2441.7,2441.6,0.81887]
[1750944843652,0.81877,2441.9,2441.8,0.81879]
[1750944843948,1.92254362,2441.9,2441.7,0.81881]
[1750944844245,1.10375362,2441.8,2441.7,0.81881]
[1750944844650,0.81873,2442.1,2441.7,1.3281]
[1750944844845,1.10766566,2442.0,2441.9,0.81877]
[1750944845247,1.10766566,2442.0,2441.9,2.87297]
[1750944845447,1.10766566,2442.0,2441.9,6.08077]
[1750944847761,3.14977474,2442.5,2442.4,0.8186]
[1750944847954,0.7206,2442.5,2442.4,0.8186]
[1750944848148,2.42917474,2442.6,2442.5,0.81857]
[1750944848349,2.42917474,2442.6,2442.2,12.84863]
[1750944848350,2.4337588,2442.6,2442.2,12.84863]
[1750944848658,2.4337588,2442.6,2442.2,10.802]
[1750944848852,3.2522988,2442.6,2442.4,0.81858]
[1750944849155,2.4337588,2442.6,2442.5,0.81857]
[1750944849452,2.4337588,2442.7,2442.6,0.81853]
[1750944849753,2.4337588,2442.9,2442.6,7.6091]
[1750944849948,2.4337588,2442.9,2442.8,3.2078]
[1750944850151,2.4337588,2443.1,2443.0,0.8184]
[1750944850353,2.43455457,2443.2,2443.1,0.81837]
[1750944850650,0.81837,2443.1,2443.0,6.926]
[1750944851048,2.22766,2443.2,2443.0,7.74439]
[1750944851248,1.4093,2443.2,2443.1,0.81837]
[1750944851455,2.22763,2443.2,2443.0,7.74438]
[1750944851855,2.22765,2443.2,2443.0,6.926]
[1750944852056,0.81837,2443.1,2443.0,6.926]
[1750944852254,2.22765,2443.2,2443.0,7.7444]
[1750944852558,0.81837,2443.1,2443.0,6.926]
[1750944852759,2.22767,2443.1,2443.0,6.926]
[1750944853155,6.4093,2443.1,2442.6,1.50161]
[1750944853457,0.81834,2443.2,2443.0,0.81838]
[1750944853653,0.81831,2443.3,2443.1,0.81835]
[1750944853849,6.06708,2443.4,2443.0,6.925]
[1750944854161,3.2078,2443.7,2443.3,3.2078]
[1750944854351,1.3628,2443.9,2443.4,6.925]
[1750944854560,2.18091,2443.9,2443.8,0.81813]
[1750944854750,2.18091,2443.9,2443.4,6.925]
[1750944854751,2.18091,2443.9,2443.7,0.81815]
[1750944855262,2.18091,2443.9,2443.8,0.81813]
[1750944855556,2.18091,2443.9,2443.4,6.925]
[1750944855557,0.81817,2443.7,2443.4,7.6406]
[1750944855755,1.3628,2443.9,2443.6,0.81818]
[1750944855949,1.3628,2443.9,2443.4,7.6406]
[1750944856157,1.3628,2443.9,2443.6,0.81819]
[1750944856355,1.3628,2443.9,2443.4,7.6406]
[1750944856556,0.81815,2443.8,2443.7,0.81816]
[1750944856754,2.18092,2443.9,2443.7,0.81814]
[1750944856952,0.8181,2443.9,2443.8,0.81813]
[1750944857154,0.81813,2443.9,2443.5,1.4113]
[1750944857358,2.1961,2443.9,2443.8,0.81813]
[1750944857560,1.378,2443.9,2443.8,7.74213]
[1750944857957,0.8181,2443.9,2443.8,6.924]
[1750944858361,2.1961,2443.9,2443.8,6.924]
[1750944859063,2.1961,2443.9,2443.8,7.74213]
[1750944859266,3.2078,2444.0,2443.9,0.8181]
[1750944859758,4.30603297,2444.0,2443.9,0.8181]
[1750944859958,1.09823297,2444.0,2443.9,0.8181]
[1750944861155,3.24569297,2444.0,2443.9,0.8181]
[1750944861353,2.42763297,2444.0,2443.9,0.8181]
[1750944861559,1.09823297,2444.0,2443.9,0.8181]
[1750944862364,1.3294,2444.3,2444.2,0.818]
[1750944862562,3.24457315,2444.3,2444.2,0.818]
[1750944862960,2.42661315,2444.3,2443.8,8.3635]
[1750944863159,0.81805,2444.1,2444.0,0.81805]
[1750944863365,1.09721315,2444.1,2443.7,0.7114]
[1750944863553,1.48738,2444.0,2443.7,6.923]
[1750944863757,1.48738,2444.0,2443.9,0.8181]
[1750944863960,0.8181,2443.9,2443.8,0.81811]
[1750944864269,0.6693,2444.0,2443.9,0.8181]
[1750944864475,0.6693,2444.0,2443.7,6.923]
[1750944864762,1.76637225,2444.0,2443.7,6.923]
[1750944864968,1.3228,2443.9,2443.8,0.81813]
[1750944865158,2.41950451,2443.9,2443.8,0.81813]
[1750944865357,3.23761111,2443.9,2443.8,0.81813]
[1750944865553,0.81813,2443.8,2443.7,10.1298]
[1750944865768,2.23583,2443.8,2443.7,10.1298]
[1750944865966,2.51431591,2443.8,2443.7,7.74016]
[1750944866167,2.51431591,2443.8,2443.7,10.94796]
[1750944866767,2.23583,2443.8,2443.7,6.922]
[1750944866967,0.81816,2443.7,2443.6,6.922]
[1750944867171,0.81816,2443.7,2443.4,3.2078]
[1750944867172,1.4177,2443.7,2443.5,6.922]
[1750944867360,0.8182,2443.6,2443.5,6.922]
[1750944867960,0.81823,2443.5,2443.4,0.81825]
[1750944868160,2.15013,2443.5,2443.4,0.81825]
[1750944868360,2.15016,2443.5,2443.4,0.81827]
[1750944868560,0.81827,2443.4,2443.3,7.74028]
[1750944868759,2.0057,2443.4,2443.3,7.7403]
[1750944869557,0.7009,2443.9,2443.7,0.81815]
[1750944869758,1.77177793,2443.8,2443.4,3.2078]
[1750944869959,1.91615793,2443.7,2443.6,0.8182]
[1750944870273,3.24805793,2443.7,2443.6,0.8182]
[1750944870460,2.42987793,2443.7,2443.6,0.8182]
[1750944870865,3.24803793,2443.7,2443.6,0.8182]
[1750944871064,10.63767793,2443.7,2443.3,6.922]
[1750944871266,1.91619793,2443.6,2443.5,0.81823]
[1750944871460,2.43257793,2443.6,2443.5,0.81823]
[1750944871859,1.09797793,2443.6,2443.5,0.81823]
[1750944872065,1.09882384,2443.7,2443.4,3.2078]
[1750944872269,1.09882384,2443.7,2443.6,0.8182]
[1750944873564,1.91698384,2443.7,2443.6,0.8182]
[1750944873760,1.09882384,2443.7,2443.4,3.2078]
[1750944873964,0.81823,2443.5,2443.4,3.2078]
[1750944874265,1.09882384,2443.5,2443.4,10.91307]
[1750944874564,1.91705384,2443.5,2443.4,4.02607]
[1750944874767,1.91705384,2443.5,2443.3,6.887]
[1750944874768,0.81833,2443.2,2443.1,3.2078]
[1750944875072,1.91706205,2443.2,2443.1,4.02613]
[1750944875462,0.81837,2443.1,2443.0,0.81837]
[1750944875660,6.39543205,2443.1,2442.5,49.89108]
[1750944875958,6.39543205,2443.1,2442.3,2.04655]
[1750944875959,2.04642,2442.5,2441.1,13.63691631]
[1750944876162,3.2078,2441.3,2441.2,1.5127]
[1750944876372,4.02678,2441.3,2440.9,6.887]
[1750944876672,4.02679,2441.3,2441.0,0.81905]
[1750944876871,3.2078,2441.3,2440.9,6.887]
[1750944877069,3.2078,2441.0,2440.9,7.7061]
[1750944877270,3.2078,2441.0,2440.9,6.887]
[1750944877572,0.81912,2440.9,2440.6,0.81919]
[1750944877764,3.2078,2440.7,2440.6,7.7062]
[1750944878660,3.2078,2441.3,2440.6,14.40170568]
[1750944878868,1.09886209,2441.2,2440.6,14.40170568]
[1750944879066,1.09886209,2441.1,2441.0,0.81907]
[1750944879664,1.09886209,2441.1,2441.0,7.70807]
[1750944879869,5.64235457,2441.6,2441.5,0.8189]
[1750944880065,2.43455457,2441.8,2441.4,6.889]
[1750944880269,5.64235457,2442.0,2441.9,0.81877]
[1750944880573,5.64235457,2442.1,2441.5,8.90300568]
[1750944880773,3.2078,2441.9,2441.8,0.81879]
[1750944880978,3.2078,2441.9,2441.8,0.8188]
[1750944881962,3.2078,2441.9,2441.6,6.889]
[1750944882168,3.2078,2441.9,2441.7,0.81883]
[1750944882568,4.6634,2441.9,2441.6,6.889]
[1750944882775,0.6592,2441.8,2441.7,0.81883]
[1750944883068,2.93362,2441.8,2441.6,6.889]
[1750944883275,2.1148,2441.8,2441.6,7.70786]
[1750944883869,2.1148,2441.8,2441.0,51.0466]
[1750944884066,3.2078,2441.5,2441.2,0.81899]
[1750944884270,3.2078,2441.5,2441.1,6.89]
[1750944884464,3.2078,2441.5,2441.4,0.81894]
[1750944884678,3.2078,2441.5,2441.2,0.81899]
[1750944884877,1.3342,2441.4,2441.3,0.81897]
[1750944885078,2.15316,2441.4,2441.1,6.89]
[1750944885291,3.2078,2441.2,2441.0,0.6718]
[1750944885475,3.2078,2441.2,2441.1,0.81904]
[1750944886474,3.2078,2441.2,2440.4,3.935]
[1750944886475,8.2078,2441.2,2440.4,3.935]
[1750944886681,3.2078,2440.5,2440.4,7.6172]
[1750944886873,3.2078,2440.5,2439.9,10.0978]
[1750944887071,3.2078,2440.0,2439.6,6.89]
[1750944887381,3.2078,2439.7,2439.6,7.70953]